bitfinex/quotes_SOLUSD_20251007
["timestamp","ask_amount","ask_price","bid_price","bid_amount"]
[1759842048343,1.71790266,231.35,231.31,33.66]
[1759842048681,1.71790266,231.32,231.31,33.66]
[1759842048977,0.71,231.36,231.31,64.8]
[1759842049275,0.71,231.35,231.32,31.14]
[1759842049575,4.32282885,231.33,231.32,31.14]
[1759842050566,10.87647521,231.39,231.32,31.14]
[1759842050567,20.8,231.42,231.32,31.8]
[1759842050741,20.8,231.42,231.33,0.66]
[1759842050939,1.71790266,231.4,231.33,0.66]
[1759842051143,0.71,231.39,231.32,31.14]
[1759842051776,15.1266315,231.38,231.32,31.14]
[1759842052156,15.1266315,231.38,231.31,34.32]
[1759842052366,15.1266315,231.38,231.32,31.16]
[1759842053387,15.1266315,231.38,231.33,0.66]
[1759842053567,15.1266315,231.38,231.34,0.66]
[1759842053745,20.8,231.38,231.35,0.66]
[1759842053945,20.8,231.38,231.36,31.14]
[1759842054157,15.12467049,231.41,231.36,31.8]
[1759842054547,15.83467049,231.41,231.36,31.14]
[1759842054767,0.71,231.4,231.36,31.14]
[1759842055274,15.12467049,231.41,231.36,31.14]
[1759842055578,15.12467049,231.41,231.36,31.8]
[1759842055748,15.83467049,231.41,231.36,31.14]
[1759842056443,0.71,231.4,231.31,33.66]
[1759842056665,0.71,231.4,231.32,31.12]
[1759842057853,15.12597777,231.39,231.31,33.66]
[1759842058059,15.12597777,231.39,231.32,31.1]
[1759842059482,0.71,231.38,231.32,31.1]
[1759842059662,0.71,231.38,231.31,33.66]
[1759842059978,0.71,231.38,231.32,31.08]
[1759842060148,15.12728529,231.37,231.32,31.08]
[1759842060356,15.12728529,231.37,231.32,31.74]
[1759842061279,0.71,231.38,231.31,33.66]
[1759842061280,1.71790266,231.35,231.31,33.66]
[1759842061464,21.5,231.36,231.31,33.66]
[1759842061465,1.71790266,231.32,231.31,33.66]
[1759842061665,2.41790266,231.32,231.31,64.76]
[1759842062864,6.74091839,231.32,231.31,64.76]
[1759842063077,5.02301573,231.32,231.31,64.76]
[1759842063458,4.32301573,231.32,231.31,64.76]
[1759842065087,1.71790266,231.33,231.31,64.76]
[1759842065258,0.7,231.32,231.31,64.76]
[1759842065457,20.8,231.31,231.21,0.2]
[1759842065780,1.71790266,231.29,231.22,31.06]
[1759842066665,1.71790266,231.29,231.21,0.86]
[1759842066666,1.71790266,231.27,231.21,0.86]
[1759842066867,15.13448066,231.26,231.22,31.06]
[1759842067465,15.13448066,231.26,231.23,0.66]
[1759842068077,15.13448066,231.26,231.24,0.66]
[1759842068475,15.13448066,231.26,231.22,31.06]
[1759842068673,15.13448066,231.26,231.21,0.2]
[1759842068674,2.41790266,231.25,231.21,0.2]
[1759842068876,4.32451133,231.24,231.22,31.04]
[1759842069073,15.13578965,231.24,231.21,0.2]
[1759842069277,15.13578965,231.24,231.22,31.72]
[1759842069968,15.13578965,231.24,231.22,31.06]
[1759842070282,15.13578965,231.24,231.21,0.2]
[1759842070478,2.41790266,231.23,231.22,31.08]
[1759842070872,4.32469835,231.23,231.22,31.08]
[1759842071396,6.74260101,231.23,231.22,31.08]
[1759842071607,20.8,231.2,231.16,33.68]
[1759842071893,1.71790266,231.18,231.16,33.68]
[1759842072311,21.5,231.2,231.16,33.68]
[1759842072484,20.8,231.2,231.16,33.68]
[1759842072682,20.8,231.2,231.17,31.74]
[1759842072995,4.3254466,231.19,231.17,31.74]
[1759842073200,4.3254466,231.19,231.17,31.08]
[1759842074583,4.3254466,231.19,231.18,0.66]
[1759842074795,4.3254466,231.19,231.17,31.08]
[1759842075098,10.81326992,231.2,231.17,31.08]
[1759842075277,10.81326992,231.2,231.18,0.66]
[1759842075691,10.81326992,231.2,231.17,31.08]
[1759842076094,20.8,231.18,231.17,31.74]
[1759842076502,20.8,231.18,231.17,31.08]
[1759842077003,4.3256337,231.18,231.17,31.74]
[1759842077785,4.3256337,231.18,231.17,31.08]
[1759842079095,10.81326992,231.2,231.17,31.08]
[1759842079491,10.81326992,231.2,231.17,31.74]
[1759842079875,10.81326992,231.2,231.17,31.08]
[1759842081894,0.7,231.19,231.18,31.02]
[1759842083498,5.0254466,231.19,231.18,31.02]
[1759842083676,4.3254466,231.19,231.18,31.02]
[1759842084882,20.8,231.17,231.16,33.68]
[1759842085194,24.64111567,231.17,231.09,0.66]
[1759842085609,15.14102784,231.16,231.09,0.66]
[1759842086080,20.8,231.13,231.1,31.0]
[1759842086696,21.5,231.13,231.1,31.0]
[1759842086916,20.8,231.13,231.1,31.0]
[1759842087402,20.8,231.13,231.1,31.66]
[1759842087791,20.8,231.11,231.1,31.66]
[1759842087972,4.32507244,231.21,231.1,31.66]
[1759842088179,4.32507244,231.21,231.11,0.66]
[1759842088577,15.13775355,231.21,231.11,0.66]
[1759842089106,20.8,231.18,231.11,0.66]
[1759842089300,15.13775355,231.21,231.11,0.66]
[1759842089903,10.87647521,231.23,231.11,0.66]
[1759842090102,20.8,231.2,231.11,0.66]
[1759842091422,15.13578965,231.24,231.12,10.87647521]
[1759842091706,4.32451133,231.24,231.13,0.71]
[1759842092002,15.1331719,231.28,231.13,0.71]
[1759842092396,20.8,231.25,231.13,0.71]
[1759842092793,20.8,231.21,231.14,31.0]
[1759842092995,21.5,231.21,231.14,31.0]
[1759842093384,20.8,231.21,231.15,0.71]
[1759842093992,4.32525951,231.2,231.15,0.71]
[1759842094175,4.32525951,231.2,231.16,0.71]
[1759842094391,4.32525951,231.2,231.14,31.0]
[1759842094594,4.32525951,231.2,231.15,0.71]
[1759842094787,4.32525951,231.2,231.16,0.71]
[1759842094989,15.13382626,231.27,231.17,0.71]
[1759842096216,25.12395036,231.27,231.17,0.71]
[1759842096391,25.12395036,231.27,231.17,13.68718178]
[1759842096591,4.32395036,231.27,231.18,0.71]
[1759842097000,4.32395036,231.27,231.2,20.8]
[1759842097195,4.32395036,231.27,231.21,31.79]
[1759842097395,4.32395036,231.27,231.22,0.71]
[1759842097700,4.32395036,231.27,231.23,0.71]
[1759842097899,4.32395036,231.27,231.24,0.65]
[1759842098079,15.13207042,231.3,231.24,0.65]
[1759842098683,15.13207042,231.3,231.21,31.73]
[1759842099099,0.7,231.29,231.21,31.73]
[1759842099889,0.7,231.28,231.21,31.08]
[1759842100125,20.8,231.22,231.14,0.65]
[1759842100409,3.14111567,231.19,231.12,12.97998918]
[1759842100615,3.14111567,231.16,231.08,0.85]
[1759842100789,0.7,231.15,231.13,26.02]
[1759842101118,0.7,231.14,231.13,26.02]
[1759842101715,28.02706804,231.17,231.13,26.02]
[1759842102012,0.7,231.16,231.13,26.02]
[1759842102218,20.8,231.14,231.13,26.02]
[1759842103122,4.32619511,231.15,231.13,26.02]
[1759842103334,20.8,231.16,231.13,26.02]
[1759842103822,20.8,231.15,231.13,26.02]
[1759842104200,4.32638227,231.14,231.13,26.02]
[1759842105224,5.02638227,231.14,231.13,26.02]
[1759842105721,4.32638227,231.14,231.13,26.02]
[1759842106927,5.02638227,231.14,231.13,26.02]
[1759842107096,20.8,231.07,231.01,33.7]
[1759842107297,21.5,231.06,231.01,33.7]
[1759842107521,0.7,231.05,231.01,33.7]
[1759842107693,21.5,231.04,231.01,33.7]
[1759842107899,0.7,231.03,231.01,33.7]
[1759842108120,4.32844219,231.03,231.01,33.7]
[1759842108300,4.32844219,231.03,231.02,31.1]
[1759842108623,25.12824746,231.05,231.02,31.75]
[1759842108810,4.32824746,231.05,231.02,31.75]
[1759842109017,4.32824746,231.05,231.03,0.65]
[1759842109609,4.32824746,231.05,231.02,31.1]
[1759842110216,20.8,231.03,231.02,31.1]
[1759842111627,21.5,231.03,231.02,31.1]
[1759842112024,28.72706804,231.03,231.02,31.1]
[1759842112222,33.05551023,231.03,231.02,31.1]
[1759842112513,25.82844219,231.03,231.02,31.1]
[1759842112715,43.93198544,231.03,231.02,31.1]
[1759842113617,20.8,230.99,230.92,0.65]
[1759842113806,20.8,230.99,230.94,0.65]
[1759842114004,20.8,230.99,230.95,0.65]
[1759842114235,4.32900432,231.0,230.87,21.0]
[1759842114531,31.62250139,231.01,230.87,21.0]
[1759842114532,20.8,231.01,230.96,0.65]
[1759842114705,20.8,231.01,230.97,31.1]
[1759842114910,20.8,231.01,230.98,0.65]
[1759842115229,20.8,231.01,230.99,0.65]
[1759842115230,25.12885559,231.01,230.99,0.65]
[1759842115425,4.32827458,231.04,230.97,31.1]
[1759842115719,20.8,231.03,231.0,0.65]
[1759842116148,20.8,231.03,230.97,31.1]
[1759842116337,4.32862955,231.02,230.98,0.65]
[1759842116643,25.12840234,231.04,230.99,0.65]
[1759842116942,25.12827645,231.04,231.0,0.65]
[1759842117106,36.64891356,231.04,230.97,31.75]
[1759842117511,7.22706804,231.03,230.97,31.1]
[1759842117731,0.7,231.02,230.97,31.1]
[1759842117940,36.64891356,231.04,230.97,31.1]
[1759842118217,4.32900432,231.0,230.97,31.1]
[1759842118621,15.15151514,231.0,230.97,31.1]
[1759842119145,4.32900432,231.0,230.97,31.1]
[1759842119521,20.8,231.02,230.98,0.65]
[1759842119522,25.12880831,231.02,230.98,0.65]
[1759842119913,25.12880831,231.02,230.99,0.65]
[1759842120113,25.12880831,231.02,231.0,0.68]
[1759842120352,4.32844219,231.03,231.0,0.68]
[1759842120550,4.32844219,231.03,230.97,31.1]
[1759842120720,4.32844219,231.03,231.01,0.68]
[1759842120920,20.8,231.02,230.98,0.68]
[1759842121120,20.8,231.02,230.99,0.68]
[1759842121315,20.8,231.02,230.97,31.78]
[1759842121521,0.69,231.02,230.97,31.1]
[1759842121734,0.69,231.01,230.97,31.1]
[1759842121932,28.02706804,231.02,230.97,31.1]
[1759842122127,0.69,231.0,230.97,31.1]
[1759842122333,4.32937916,230.98,230.97,31.1]
[1759842122536,25.12937916,230.98,230.97,31.1]
[1759842122728,25.81937916,230.98,230.97,31.1]
[1759842123150,25.12937916,230.98,230.97,31.1]
[1759842124036,36.00585437,230.98,230.97,31.1]
[1759842124241,25.12937916,230.98,230.97,31.1]
[1759842124637,25.12937916,230.98,230.97,31.78]
[1759842125153,25.12937916,230.98,230.97,31.1]
[1759842125985,4.32922286,230.99,230.97,31.1]
[1759842126278,20.8,230.98,230.97,31.1]
[1759842126447,18.04927796,231.01,230.98,0.68]
[1759842126448,20.8,231.01,230.98,0.68]
[1759842126634,20.8,231.01,230.99,0.68]
[1759842127444,20.8,231.01,230.97,31.1]
[1759842127637,20.8,231.01,230.97,31.78]
[1759842127960,20.8,231.01,230.97,31.1]
[1759842128371,4.32900432,231.0,230.97,31.1]
[1759842128735,15.15151514,231.0,230.97,31.1]
[1759842129643,20.8,230.98,230.97,31.1]
[1759842130545,25.12937916,230.98,230.97,31.1]
[1759842130745,4.32907088,231.0,230.97,31.78]
[1759842130947,20.8,231.03,230.98,0.68]
[1759842131161,25.12806751,231.05,230.99,0.68]
[1759842131575,35.94851511,231.05,230.99,0.68]
[1759842132065,35.94851511,231.05,230.97,31.1]
[1759842132066,20.8,231.01,230.97,31.1]
[1759842132468,20.8,231.01,230.93,0.88]
[1759842132469,4.32994154,230.95,230.93,0.88]
[1759842132670,10.87647521,230.99,230.94,31.1]
[1759842132858,10.87647521,231.04,230.95,0.68]
[1759842133055,20.8,231.01,230.95,0.68]
[1759842133875,20.8,231.02,230.95,0.68]
[1759842134456,35.9482363,231.05,230.95,0.68]
[1759842136365,4.32806751,231.05,230.95,0.68]
[1759842136770,25.12806751,231.05,230.95,0.68]
[1759842138903,4.32694387,231.11,230.97,20.8]
[1759842139065,4.32694387,231.11,231.01,20.8]
[1759842139266,4.32694387,231.11,231.02,31.76]
[1759842139463,4.32694387,231.11,231.03,0.68]
[1759842139997,4.32656946,231.13,231.03,0.68]
[1759842141467,15.14299311,231.13,231.03,0.68]
[1759842141689,0.69,231.12,231.03,0.68]
[1759842141886,0.69,231.12,231.0,0.68]
[1759842142076,4.88851089,231.1,231.01,31.06]
[1759842142385,26.01946832,231.13,231.01,31.06]
[1759842142386,20.8,231.07,231.01,31.06]
[1759842142684,25.12844219,231.03,231.02,31.08]
[1759842142892,25.81844219,231.03,231.02,31.08]
[1759842143567,36.63954767,231.03,231.02,31.08]
[1759842144179,25.81844219,231.03,231.02,31.08]
[1759842145170,4.3278802,231.06,231.02,31.08]
[1759842145366,4.3278802,231.06,231.03,0.68]
[1759842145571,4.32767206,231.08,231.04,0.68]
[1759842146095,5.01767206,231.08,231.02,31.08]
[1759842147068,4.32767206,231.08,231.02,31.08]
[1759842148269,15.83643612,231.08,231.02,31.08]
[1759842149398,25.12767206,231.08,231.02,31.76]
[1759842150207,4.32687601,231.12,231.03,0.72]
[1759842151011,25.12687601,231.12,231.03,0.72]
[1759842151592,35.94376766,231.12,231.03,0.72]
[1759842151790,0.71,231.11,231.03,0.72]
[1759842151999,0.71,231.11,231.02,31.08]
[1759842152905,0.71,231.11,231.02,31.8]
[1759842153075,4.32713111,231.1,231.02,31.8]
[1759842153280,4.32695924,231.11,231.03,0.72]
[1759842153477,20.8,231.12,231.03,0.72]
[1759842154398,0.71,231.2,231.03,0.72]
[1759842154699,0.71,231.19,231.06,10.87647521]
[1759842154899,0.71,231.19,231.07,0.72]
[1759842155085,4.3256337,231.18,231.07,0.72]
[1759842155688,0.71,231.19,231.07,0.72]
[1759842156090,5.03545242,231.19,231.07,0.72]
[1759842157381,15.84906892,231.19,231.07,0.72]
[1759842157700,5.03545242,231.19,231.07,0.72]
[1759842158101,5.03545242,231.19,231.08,31.06]
[1759842158404,0.7,231.18,231.08,31.06]
[1759842158608,0.7,231.17,231.0,12.98392157]
[1759842158789,4.88851089,231.18,231.05,0.68]
[1759842158790,0.7,231.16,231.05,0.68]
[1759842159313,0.7,231.16,230.94,39.15818856]
[1759842159314,25.12656946,231.13,231.02,0.68]
[1759842159614,0.7,231.12,231.03,26.78]
[1759842160098,0.7,231.11,231.03,26.78]
[1759842160294,40.831504,231.13,231.03,26.78]
[1759842160295,0.7,231.1,231.03,26.78]
[1759842160488,0.7,231.09,231.03,26.78]
[1759842160690,0.7,231.11,231.03,26.78]
[1759842161612,4.32713111,231.1,231.03,26.78]
[1759842162112,15.14495889,231.1,231.03,26.78]
[1759842162699,20.8,231.1,231.03,27.46]
[1759842163206,36.64431613,231.11,231.03,27.46]
[1759842163819,0.7,231.1,231.03,26.78]
[1759842164678,0.7,231.09,230.95,0.68]
[1759842164884,0.7,231.09,230.96,31.0]
[1759842164885,20.8,231.06,230.96,31.0]
[1759842165095,0.7,231.05,230.96,31.0]
[1759842165300,25.68851089,231.06,230.96,31.0]
[1759842165301,0.7,231.04,230.96,31.0]
[1759842166206,4.32844219,231.03,230.96,31.0]
[1759842166415,15.14954767,231.03,230.96,31.0]
[1759842167791,15.84954767,231.03,230.96,31.0]
[1759842169283,15.84954767,231.03,230.96,31.68]
[1759842169686,20.8,231.07,230.97,0.68]
[1759842169886,21.5,231.07,230.97,0.68]
[1759842170398,15.14758071,231.06,230.97,0.68]
[1759842170598,4.3278802,231.06,230.97,0.68]
[1759842174511,0.7,231.05,230.96,31.0]
[1759842174813,15.14889195,231.04,230.96,31.0]
[1759842175005,4.32825484,231.04,230.97,0.68]
[1759842175689,15.14889195,231.04,230.97,0.68]
[1759842175982,15.84889195,231.04,230.97,0.68]
[1759842176414,15.84889195,231.04,230.96,31.0]
[1759842176616,0.7,231.03,230.96,31.0]
[1759842176796,5.02862955,231.02,230.96,31.0]
[1759842176988,15.85020343,231.02,230.96,31.0]
[1759842177185,0.7,231.01,230.96,31.0]
[1759842177402,0.7,231.0,230.96,31.0]
[1759842177822,0.7,230.99,230.96,31.0]
[1759842178792,4.32937916,230.98,230.96,31.0]
[1759842178993,4.3291901,231.0,230.96,31.0]
[1759842179295,0.7,230.99,230.96,31.0]
[1759842180113,15.85020343,231.02,230.96,31.0]
[1759842180321,0.7,231.01,230.96,31.0]
[1759842180504,0.7,231.0,230.96,31.0]
[1759842180704,15.15020343,231.02,230.96,31.0]
[1759842180909,20.8,231.02,230.97,0.69]
[1759842181115,10.82020389,231.05,230.97,0.69]
[1759842181116,4.32806751,231.05,230.97,0.69]
[1759842181623,0.7,231.04,230.98,31.0]
[1759842181994,4.32862955,231.02,230.98,31.0]
[1759842182194,5.02844904,231.03,230.98,31.0]
[1759842183114,15.84955452,231.03,230.98,31.0]
[1759842183289,0.7,231.02,230.98,31.0]
[1759842183493,0.7,231.01,230.98,31.0]
[1759842183694,0.7,231.0,230.98,31.0]
[1759842183890,0.7,230.99,230.98,31.0]
[1759842184122,5.02919173,230.99,230.98,31.0]
[1759842185726,15.90566694,230.99,230.98,31.0]
[1759842188020,20.79417783,230.99,230.98,31.0]
[1759842188221,20.8,230.96,230.9,33.72]
[1759842188414,20.8,230.96,230.94,31.0]
[1759842188610,0.7,230.95,230.94,31.0]
[1759842189039,5.02994154,230.95,230.94,31.0]
[1759842189926,25.12994154,230.95,230.94,31.0]
[1759842191202,25.82994154,230.95,230.94,31.0]
[1759842191397,36.70641675,230.95,230.94,31.0]
[1759842192303,41.59492764,230.95,230.94,31.0]
[1759842192917,36.70641675,230.95,230.94,31.0]
[1759842193126,36.00641675,230.95,230.94,31.0]
[1759842193335,36.70641675,230.95,230.94,31.0]
[1759842193633,36.70641675,230.95,230.9,34.41]
[1759842193634,10.87647521,230.94,230.9,33.72]
[1759842193810,15.7649861,230.94,230.9,33.72]
[1759842194129,16.4649861,230.94,230.9,33.72]
[1759842194330,10.87647521,230.9,230.87,0.2]
[1759842194627,36.5649861,230.9,230.87,0.2]
[1759842194929,32.37647521,230.9,230.89,25.38]
[1759842195119,36.70735437,230.9,230.89,25.38]
[1759842195727,52.42306318,230.9,230.87,0.2]
[1759842196053,15.7649861,230.88,230.87,1e-08]
[1759842196404,16.4649861,230.88,230.87,1e-08]
[1759842196806,20.8,230.85,230.79,0.2]
[1759842197019,20.8,230.85,230.79,0.89]
[1759842197229,25.13200485,230.84,230.79,0.89]
[1759842197428,4.33200485,230.84,230.79,0.89]
[1759842197803,20.8,230.81,230.79,0.89]
[1759842198207,20.8,230.81,230.8,31.71]
[1759842198637,25.13200485,230.84,230.8,31.71]
[1759842198842,25.13200485,230.84,230.81,0.69]
[1759842199043,25.13200485,230.84,230.8,31.02]
[1759842199335,25.13200485,230.84,230.8,31.71]
[1759842199715,25.13200485,230.84,230.8,31.02]
[1759842200020,35.96201697,230.84,230.8,31.02]
[1759842200222,36.66201697,230.84,230.8,31.02]
[1759842200419,35.96201697,230.84,230.8,31.02]
[1759842200637,35.96201697,230.84,230.8,31.71]
[1759842200814,20.8,230.84,230.81,0.69]
[1759842201209,25.13219252,230.83,230.82,0.69]
[1759842202219,20.8,230.83,230.82,0.69]
[1759842202531,25.13219252,230.83,230.82,0.69]
[1759842202929,4.33219252,230.83,230.82,0.69]
[1759842203321,4.33196916,230.85,230.82,0.69]
[1759842204432,15.16151215,230.85,230.82,0.69]
[1759842204637,20.8,230.86,230.8,31.02]
[1759842204807,20.8,230.86,230.82,0.69]
[1759842205438,21.5,230.86,230.8,31.02]
[1759842205615,36.66082368,230.86,230.8,31.71]
[1759842206539,35.96082368,230.86,230.81,0.69]
[1759842208841,25.13174979,230.86,230.82,0.69]
[1759842209137,4.32881693,231.01,230.83,0.69]
[1759842209433,10.87647521,230.96,230.83,0.69]
[1759842209809,4.33050407,230.92,230.83,0.69]
[1759842210227,20.8,230.92,230.83,0.69]
[1759842210619,15.15545162,230.94,230.83,0.69]
[1759842211534,4.33012903,230.94,230.83,0.69]
[1759842213636,20.8,230.96,230.83,0.69]
[1759842214538,4.32994154,230.95,230.84,31.67647521]
[1759842214747,5.02943486,230.98,230.85,0.72]
[1759842215625,15.85288277,230.98,230.85,0.72]
[1759842215817,15.85288277,230.98,230.86,31.02]
[1759842216021,0.7,230.97,230.87,0.72]
[1759842216627,20.8,230.95,230.87,0.72]
[1759842216823,0.7,230.94,230.87,0.72]
[1759842217029,21.5,230.94,230.87,0.72]
[1759842217238,0.7,230.94,230.86,31.02]
[1759842217438,0.7,230.93,230.86,31.02]
[1759842217949,0.71,230.92,230.86,31.02]
[1759842218119,35.95413923,230.96,230.86,31.02]
[1759842218120,0.71,230.91,230.86,31.02]
[1759842218447,0.71,230.9,230.87,31.02]
[1759842219748,4.33106674,230.89,230.87,31.02]
[1759842220445,4.33087411,230.91,230.87,31.02]
[1759842220618,5.04087411,230.91,230.87,31.02]
[1759842220942,4.33087411,230.91,230.87,31.02]
[1759842221244,5.04087411,230.91,230.87,31.02]
[1759842221424,0.71,230.91,230.87,31.02]
[1759842221919,5.04069716,230.91,230.87,31.02]
[1759842222536,4.33069716,230.91,230.87,31.7]
[1759842222746,4.33069716,230.91,230.87,31.02]
[1759842223052,5.04069716,230.91,230.87,31.02]
[1759842223451,4.33069716,230.91,230.87,31.02]
[1759842223637,4.33069716,230.91,230.88,0.68]
[1759842224660,11.53377964,230.98,230.89,0.68]
[1759842224826,10.82377964,230.98,230.89,0.68]
[1759842225150,31.62377964,230.98,230.89,0.68]
[1759842225350,32.33377964,230.98,230.89,0.68]
[1759842225928,15.15348313,230.97,230.89,0.68]
[1759842226437,0.71,230.96,230.89,0.68]
[1759842228051,4.32994154,230.95,230.89,0.68]
[1759842228753,0.71,230.94,230.87,31.02]
[1759842228949,20.8,230.92,230.87,31.02]
[1759842229122,0.71,230.91,230.87,31.02]
[1759842230930,4.3306986,230.91,230.87,31.7]
[1759842231128,20.8,230.92,230.87,31.02]
[1759842231458,20.8,230.92,230.88,0.68]
[1759842231635,25.13066441,230.92,230.88,0.68]
[1759842231935,25.13066441,230.92,230.87,31.02]
[1759842232236,25.13066441,230.92,230.87,31.7]
[1759842232429,0.71,230.91,230.87,31.02]
[1759842232624,4.33066441,230.92,230.87,31.02]
[1759842232850,0.71,230.91,230.87,31.02]
[1759842233048,0.71,230.9,230.87,31.02]
[1759842233378,0.71,230.89,230.87,31.02]
[1759842233599,5.0412328,230.89,230.87,31.02]
[1759842234148,4.3312328,230.89,230.87,31.02]
[1759842234533,4.33080739,230.91,230.87,31.02]
[1759842234736,4.33080739,230.91,230.88,0.68]
[1759842235054,4.33080739,230.91,230.87,31.02]
[1759842235260,0.71,230.9,230.87,31.02]
[1759842235435,0.71,230.89,230.87,31.02]
[1759842235761,25.84125433,230.88,230.87,31.02]
[1759842237871,36.71772954,230.88,230.87,31.02]
[1759842238076,39.15615927,230.88,230.87,31.02]
[1759842239446,36.00772954,230.88,230.87,31.02]
[1759842241159,4.33125433,230.88,230.87,31.02]
[1759842242671,10.82672902,230.91,230.87,31.02]
[1759842243064,20.8,230.9,230.87,31.02]
[1759842243859,20.8,230.89,230.87,31.02]
[1759842244885,4.33125433,230.88,230.87,31.02]
[1759842245169,4.33125433,230.88,230.8,33.74]
[1759842245471,4.33125433,230.88,230.81,31.0]
[1759842251560,20.8,230.85,230.81,31.0]
[1759842252398,23.94842973,230.85,230.81,31.0]
[1759842252885,3.14842973,230.84,230.81,31.0]
[1759842253184,20.8,230.82,230.81,31.0]
[1759842255073,4.33201631,230.84,230.81,31.0]
[1759842255280,4.33125433,230.88,230.81,31.0]
[1759842255480,20.8,230.86,230.81,31.0]
[1759842256298,31.62921737,230.86,230.81,31.0]
[1759842256683,20.8,230.86,230.81,31.0]
[1759842257192,20.8,230.85,230.81,31.0]
[1759842257372,4.33159448,230.87,230.81,31.0]
[1759842257577,4.33087916,230.9,230.81,31.0]
[1759842257979,20.8,230.91,230.81,31.0]
[1759842258364,4.33031654,230.93,230.81,31.0]
[1759842258772,20.8,230.91,230.81,31.0]
[1759842259383,4.33087916,230.9,230.81,31.0]
[1759842261988,15.15807708,230.9,230.81,31.0]
[1759842262575,4.33087916,230.9,230.81,31.0]
[1759842262769,25.13087916,230.9,230.81,31.0]
[1759842263377,4.33087916,230.9,230.81,31.0]
[1759842263686,15.15807708,230.9,230.81,31.0]
[1759842266395,25.13087916,230.9,230.81,31.0]
[1759842266772,29.93026457,230.94,230.81,31.0]
[1759842266990,4.33026457,230.94,230.82,10.87647521]
[1759842267194,15.20566694,230.99,230.85,20.8]
[1759842267413,15.20566694,230.99,230.86,30.98]
[1759842267414,20.8,230.96,230.86,30.98]
[1759842268086,4.32994154,230.95,230.86,30.98]
[1759842268288,15.1547954,230.95,230.86,30.98]
[1759842268598,10.87647521,230.94,230.82,12.99685909]
[1759842268778,10.87647521,230.94,230.79,0.2]
[1759842268779,20.8,230.91,230.83,30.98]
[1759842270196,4.33087916,230.9,230.83,30.98]
[1759842270771,4.33087916,230.9,230.79,0.2]
[1759842270970,4.33087916,230.9,230.8,30.96]
[1759842271589,25.13078324,230.91,230.8,30.96]
[1759842272393,35.95751226,230.91,230.8,30.96]
[1759842273611,20.8,230.91,230.8,30.96]
[1759842273811,17.86225009,231.07,230.8,30.96]
[1759842273812,15.15020343,231.02,230.83,20.8]
[1759842274015,20.8,230.98,230.83,20.8]
[1759842274416,4.32956661,230.97,230.81,12.99742217]
[1759842274614,4.32956661,230.97,230.81,33.79742217]
[1759842274932,4.32956661,230.97,230.82,10.87647521]
[1759842275093,4.32956661,230.97,230.85,20.8]
[1759842275294,4.32956661,230.97,230.86,30.96]
[1759842276414,15.15348313,230.97,230.86,30.96]
[1759842278316,20.8,230.96,230.86,30.96]